[Event "EYTCC Open U12 2018"]
[Site "Bad Blankeburg"]
[Date "2018.07.14"]
[Round "4"]
[White "Laux, Dominik"]
[Black "Kures, Michael"]
[Result "1/2-1/2"]
[ECO "A45"]
[WhiteElo "1943"]
[BlackElo "1982"]
[Annotator "NA"]
[PlyCount "61"]
[EventDate "2018.07.12"]
[EventType "swiss"]
[EventCountry "GER"]
[SourceTitle "playchess.com"]
[Source "ChessBase"]
[SourceQuality "1"]
[TimeControl "40/5400+30:1800+30"]

1. d4 Nf6 2. Bf4 g6 3. Nc3 d5 4. e3 c6 5. Nf3 {[%emt 0:02:56]} Bg7 {[%emt 0:02:43]} 6. Bd3 {[%emt 0:01:38]} O-O {[%emt 0:01:33]} 7. Qe2 {[%emt 0:03:06]} b5 {[%emt 0:03:12]} 8. h3 {[%emt 0:02:42]} a5 {[%emt 0:03:08]} 9. Ne5 {[%emt 0:03:33]} Bb7 {[%emt 0:02:37]} 10. h4 {[%emt 0:04:50]} Nh5 {[%emt 0:06:28]} 11. Bh2 {[%emt 0:17:03]} f5 {[%emt 0:03:43]} (11... Bxe5 $11 {remains equal.} 12. Bxe5 Nd7) 12. Bxf5 {[%emt 0:07:10]} Rxf5 {[%emt 0:02:15]} 13. g4 {[%emt 0:00:23]} Bxe5 $16 {[%emt 0:04:42]} 14. dxe5 {[%emt 0:01:25]} d4 {[%emt 0:39:56]} 15. gxf5 {[%emt 0:20:07]} dxc3 {[%emt 0:00:48]} 16. fxg6 {[%emt 0:01:05]} Qd2+ {[%emt 0:02:48]} 17. Qxd2 {[%emt 0:01:43]} cxd2+ {[%emt 0:00:05]} 18. Kxd2 {[%emt 0:00:02]} hxg6 {[%emt 0:00:22]} 19. Ke2 {[%emt 0:03:16]} Nd7 {[%emt 0:02:22]} 20. Rhg1 {[%emt 0:01:11]} Nf8 {[%emt 0:00:47]} 21. e4 {[%emt 0:03:38]} Kf7 {[%emt 0:02:03]} 22. Rad1 {[%emt 0:03:03]} Bc8 {[%emt 0:00:50]} 23. f4 {[%emt 0:04:59]} Be6 {[%emt 0:00:58]} 24. a3 {[%emt 0:04:31]} c5 {[%emt 0:02:45]} 25. Kf3 {[%emt 0:01:35]} Rc8 {[%emt 0:03:49]} 26. Rg2 {[%emt 0:02:12]} c4 {[%emt 0:01:07]} 27. Bg1 {[%emt 0:02:10]} a4 {[%emt 0:01:15]} 28. c3 {[%emt 0:01:49]} Nd7 {[%emt 0:01:27]} 29. Rgd2 {[%emt 0:01:18]} Rc7 {[%emt 0:01:54]} 30. Bf2 {[%emt 0:02:02]} Ng7 {[%emt 0:04:00]} 31. Be3 {[%emt 0:02:16]} 1/2-1/2

[Event "EYTCC Open U12 2018"]
[Site "Bad Blankeburg"]
[Date "2018.07.14"]
[Round "4"]
[White "Deuer, Marius"]
[Black "Ozkan, Taha"]
[Result "1-0"]
[ECO "C07"]
[WhiteElo "1834"]
[BlackElo "1891"]
[Annotator "NA"]
[PlyCount "63"]
[EventDate "2018.07.12"]
[EventType "swiss"]
[EventCountry "GER"]
[SourceTitle "playchess.com"]
[Source "ChessBase"]
[SourceQuality "1"]
[TimeControl "40/5400+30:1800+30"]

1. e4 {[%emt 0:00:00]} e6 {[%emt 0:00:00]} 2. d4 {[%emt 0:00:00]} d5 {[%emt 0:00:00]} 3. Nd2 {[%emt 0:00:00]} c5 {[%emt 0:00:00]} 4. exd5 {[%emt 0:00:03]} Qxd5 {[%emt 0:00:04]} 5. dxc5 {[%emt 0:08:37]} Bxc5 {[%emt 0:01:06]} 6. Ngf3 {[%emt 0:00:35]} Nf6 {[%emt 0:00:41]} 7. Bc4 {[%emt 0:00:51]} Qc6 {[%emt 0:01:39]} 8. O-O {[%emt 0:01:29]} O-O {[%emt 0:01:58]} 9. b3 {[%emt 0:07:07]} b5 {[%emt 0:03:15]} 10. Bd3 {[%emt 0:01:13]} Bb7 {[%emt 0:01:31]} 11. Bb2 {[%emt 0:01:32]} Nbd7 {[%emt 0:01:34]} 12. Qe2 {[%emt 0:01:44]} a6 {[%emt 0:01:32]} 13. Rae1 {[%emt 0:03:06]} Bb6 {[%emt 0:08:17]} 14. Ne4 {[%emt 0:04:29]} Nd5 {[%emt 0:02:19]} 15. Qd2 {[%emt 0:10:02]} b4 {[%emt 0:03:42]} 16. Bc4 {[%emt 0:03:35]} Rad8 $11 {[%emt 0:06:26]} 17. Nd4 {[%emt 0:03:51]} Bxd4 {[%emt 0:03:26]} 18. Qxd4 {[%emt 0:01:40]} N5f6 {[%emt 0:02:54]} 19. f3 {[%emt 0:00:47]} Rfe8 {[%emt 0:02:33]} 20. Qf2 {[%emt 0:02:08]} Nd5 {[%emt 0:05:00]} 21. Qg3 {[%emt 0:03:31]} e5 {[%emt 0:02:33]} 22. f4 {[%emt 0:01:53]} f5 {[%emt 0:24:54]} 23. fxe5 {[%emt 0:05:48]} fxe4 {[%emt 0:00:30]} 24. e6 {[%emt 0:00:23]} g6 {[%emt 0:00:33]} 25. Rf7 {[%emt 0:10:44]} Qc5+ {[%emt 0:14:02]} 26. Kh1 {[%emt 0:00:33]} Rxe6 {[%emt 0:03:57]} 27. Rg7+ {[%emt 0:01:29]} Kf8 {[%emt 0:00:06]} 28. Rf1+ {[%emt 0:01:18]} Ke8 {[%emt 0:05:40]} 29. Rg8+ {[%emt 0:03:25]} Nf8 {[%emt 0:02:07]} 30. Bg7 Kd7 {[%emt 0:01:27]} 31. Bxf8 {[%emt 0:05:57]} Qa7 {[%emt 0:00:00]} 32. Bxd5 {[%emt 0:00:00]} 1-0

[Event "EYTCC Open U12 2018"]
[Site "Bad Blankeburg"]
[Date "2018.07.14"]
[Round "4"]
[White "Babula, Vlastimil"]
[Black "Eilenberg, Jonas"]
[Result "1-0"]
[ECO "C54"]
[WhiteElo "1800"]
[BlackElo "1910"]
[Annotator "NA"]
[PlyCount "81"]
[EventDate "2018.07.12"]
[EventType "swiss"]
[EventCountry "GER"]
[SourceTitle "playchess.com"]
[Source "ChessBase"]
[SourceQuality "1"]
[TimeControl "40/5400+30:1800+30"]

1. e4 {[%emt 0:00:00]} e5 {[%emt 0:00:00]} 2. Nf3 {[%emt 0:00:15]} Nc6 {[%emt 0:00:00]} 3. Bc4 {[%emt 0:00:29]} Bc5 {[%emt 0:00:30]} 4. c3 {[%emt 0:00:41]} Nf6 {[%emt 0:00:09]} 5. d3 {[%emt 0:00:08]} d6 {[%emt 0:00:18]} 6. Nbd2 {[%emt 0:00:44]} a6 {[%emt 0:00:13]} 7. a4 {[%emt 0:00:56] C54: Giuoco Piano: 4 c3 Nf6, main lines with 5 d4 and 5 d3} (7. Bb3 O-O 8. Nf1 Be6 9. Ng3 h6 10. O-O Ba7 11. Be3 Re8 12. Bxa7 Rxa7 13. Re1 d5 14. exd5 Bxd5 15. d4 Bxb3 16. Qxb3 exd4 17. Rxe8+ Qxe8 18. cxd4 {0-1 (53) Ponomariov,R (2694)-Fressinet,L (2662) Riadh 2017}) 7... Ba7 {[%emt 0:00:27]} 8. O-O {[%emt 0:01:44]} O-O {[%emt 0:00:34]} 9. Re1 {[%emt 0:01:04]} Nh5 {[%emt 0:01:05]} 10. Nf1 {[%emt 0:02:13]} Qf6 {[%emt 0:02:26]} 11. Bg5 $146 {[%emt 0:02:40]} ({Predecessor:} 11. Ne3 Bxe3 12. Bxe3 Bg4 13. d4 Nf4 14. Bxf4 Qxf4 15. Be2 Rae8 16. h3 Bxf3 17. Bxf3 exd4 18. cxd4 {½-½ (18) Fritsche,F (2359)-Borkovec,M ICCF email 2009}) 11... Qg6 {[%emt 0:00:12]} 12. Qd2 {[%emt 0:00:26]} h6 {[%emt 0:00:36]} 13. Be3 {[%emt 0:03:14]} Bg4 {[%emt 0:03:03]} 14. Qe2 {[%emt 0:03:15]} Bxe3 {[%emt 0:06:45]} 15. Qxe3 {[%emt 0:11:17]} Nf4 {[%emt 0:01:45]} 16. Ng3 {[%emt 0:01:13]} h5 {[%emt 0:03:34]} 17. h3 {[%emt 0:11:57]} Be6 {[%emt 0:01:02]} 18. Ba2 {[%emt 0:06:46]} Qf6 $11 {[%emt 0:03:02]} 19. d4 {[%emt 0:06:07]} Ne7 {[%emt 0:02:44]} 20. dxe5 {[%emt 0:06:29]} dxe5 {[%emt 0:00:09]} 21. Ne2 {[%emt 0:03:47]} Neg6 {[%emt 0:01:35]} 22. Nxf4 {[%emt 0:00:57]} Nxf4 {[%emt 0:00:23]} 23. Bxe6 {[%emt 0:00:51]} fxe6 {[%emt 0:01:31]} 24. h4 {[%emt 0:01:17]} Rad8 {[%emt 0:04:00]} 25. Rad1 {[%emt 0:00:31]} b6 {[%emt 0:02:24]} 26. Ng5 {[%emt 0:02:30]} c5 {[%emt 0:02:55]} 27. b3 {[%emt 0:02:56]} b5 {[%emt 0:07:35]} 28. axb5 {[%emt 0:02:20]} axb5 {[%emt 0:00:23]} 29. Rf1 {[%emt 0:03:57]} c4 {[%emt 0:01:14]} 30. bxc4 {[%emt 0:01:45]} bxc4 {[%emt 0:01:03]} 31. Rxd8 {[%emt 0:06:16]} Qxd8 {[%emt 0:03:09]} 32. g3 {[%emt 0:00:45]} Qe7 {[%emt 0:05:45]} 33. gxf4 {[%emt 0:01:44]} Rxf4 {[%emt 0:00:17]} 34. Qh3 {[%emt 0:00:28]} Rg4+ {[%emt 0:01:20]} 35. Kh1 {[%emt 0:00:23]} Kh8 {[%emt 0:01:40]} 36. Ra1 {[%emt 0:01:59]} Qf8 {[%emt 0:01:14]} 37. f3 {[%emt 0:02:31]} Rf4 {[%emt 0:00:27]} 38. Kg2 {[%emt 0:00:24]} Qd8 {[%emt 0:02:55]} 39. Qxe6 {[%emt 0:04:59]} Qd2+ {[%emt 0:00:37]} 40. Kg3 {[%emt 0:00:27]} Rg4+ {[%emt 0:02:28]} 41. Qxg4 {[%emt 0:31:02]} 1-0

[Event "EYTCC Open U12 2018"]
[Site "Bad Blankeburg"]
[Date "2018.07.14"]
[Round "4"]
[White "Adiguzel, Ufuk Alp"]
[Black "Nitsche, Nikolai"]
[Result "1-0"]
[ECO "A08"]
[WhiteElo "1686"]
[BlackElo "1726"]
[Annotator "NA"]
[PlyCount "69"]
[EventDate "2018.07.12"]
[EventType "swiss"]
[EventCountry "GER"]
[SourceTitle "playchess.com"]
[Source "ChessBase"]
[SourceQuality "1"]
[TimeControl "40/5400+30:1800+30"]

1. e4 {[%emt 0:00:00]} e6 {[%emt 0:00:00]} 2. d3 {[%emt 0:00:00]} d5 {[%emt 0:00:12]} 3. Nd2 {[%emt 0:00:00]} c5 {[%emt 0:00:15]} 4. Ngf3 {[%emt 0:00:00]} Nc6 {[%emt 0:00:44]} 5. g3 {[%emt 0:00:03]} Nf6 {[%emt 0:00:32]} 6. Bg2 {[%emt 0:00:07]} Be7 {[%emt 0:00:28]} 7. O-O {[%emt 0:00:08]} O-O {[%emt 0:00:39]} 8. Re1 {[%emt 0:00:10]} dxe4 {[%emt 0:02:25]} 9. dxe4 {[%emt 0:00:15]} e5 {[%emt 0:01:03]} 10. c3 {[%emt 0:01:00]} Bg4 {[%emt 0:03:34]} 11. Qc2 {[%emt 0:01:53]} Qc7 {[%emt 0:00:41]} 12. a4 {[%emt 0:06:10]} b6 {[%emt 0:03:56]} 13. Nc4 {[%emt 0:02:52]} a6 {[%emt 0:05:16]} 14. Bg5 {[%emt 0:01:17]} b5 {[%emt 0:02:38]} 15. Ne3 {[%emt 0:01:31]} Be6 {[%emt 0:01:47]} 16. Bxf6 {[%emt 0:07:51]} Bxf6 {[%emt 0:00:46]} 17. Nd5 {[%emt 0:02:41]} Bxd5 {[%emt 0:02:44]} 18. exd5 {[%emt 0:00:39]} Ne7 {[%emt 0:01:11]} 19. Qe4 {[%emt 0:00:04]} Ng6 {[%emt 0:01:29]} 20. axb5 {[%emt 0:01:28]} axb5 {[%emt 0:01:49]} 21. Rxa8 {[%emt 0:00:19]} Rxa8 {[%emt 0:00:09]} 22. d6 {[%emt 0:03:31]} Qa7 {[%emt 0:04:41]} 23. Nh4 {[%emt 0:05:00]} Rc8 {[%emt 0:04:11]} 24. Nf5 {[%emt 0:02:33]} Nf8 {[%emt 0:07:30]} 25. Nh6+ {[%emt 0:03:51]} Kh8 {[%emt 0:00:27]} 26. Ng4 {[%emt 0:00:04]} Nd7 {[%emt 0:02:54]} 27. Nxf6 {[%emt 0:00:09]} gxf6 {[%emt 0:08:24]} 28. Qf5 {[%emt 0:00:26]} Kg7 {[%emt 0:08:32]} 29. Re4 {[%emt 0:07:15]} Rg8 {[%emt 0:01:36]} 30. Rg4+ {[%emt 0:07:22]} Kf8 {[%emt 0:00:20]} 31. Rxg8+ Kxg8 {[%emt 0:00:12]} 32. Be4 {[%emt 0:00:22]} Nf8 {[%emt 0:03:16]} 33. Qxf6 {[%emt 0:00:23]} Qa1+ {[%emt 0:00:27]} 34. Kg2 {[%emt 0:00:05]} Qxb2 {[%emt 0:00:18]} 35. Bd5 {[%emt 0:00:05]} 1-0

[Event "EYTCC Open U12 2018"]
[Site "Bad Blankeburg"]
[Date "2018.07.14"]
[Round "4"]
[White "Ermitsch, Magnus"]
[Black "Kabadayi, Suleyman Arda"]
[Result "0-1"]
[ECO "B53"]
[WhiteElo "1594"]
[BlackElo "1650"]
[Annotator "NA"]
[PlyCount "52"]
[EventDate "2018.07.12"]
[EventType "swiss"]
[EventCountry "GER"]
[SourceTitle "playchess.com"]
[Source "ChessBase"]
[SourceQuality "1"]
[TimeControl "40/5400+30:1800+30"]

1. e4 {[%emt 0:00:46]} c5 {[%emt 0:00:00]} 2. Nf3 {[%emt 0:00:46]} d6 {[%emt 0:00:00]} 3. d4 {[%emt 0:01:13]} cxd4 {[%emt 0:00:08]} 4. Qxd4 {[%emt 0:02:36]} Nc6 {[%emt 0:00:34]} 5. Bb5 {[%emt 0:00:40]} Bd7 {[%emt 0:00:37]} 6. Bxc6 {[%emt 0:02:15]} Bxc6 {[%emt 0:00:35]} 7. Nc3 {[%emt 0:01:30]} Nf6 {[%emt 0:02:57]} 8. Bg5 {[%emt 0:01:21]} e6 {[%emt 0:01:00]} 9. O-O-O {[%emt 0:02:02]} Be7 {[%emt 0:01:12]} 10. Qd3 {[%emt 0:01:37]} O-O {[%emt 0:02:20]} 11. Nd4 {[%emt 0:02:09]} Rc8 {[%emt 0:05:01]} 12. h4 {[%emt 0:07:21]} Qa5 {[%emt 0:06:39]} 13. f4 {[%emt 0:03:11]} Qa6 {[%emt 0:04:15]} 14. Qh3 {[%emt 0:13:09]} Rfe8 {[%emt 0:08:31]} 15. Bxf6 {[%emt 0:10:38]} Bxf6 {[%emt 0:01:13]} 16. g4 {[%emt 0:03:32]} b5 {[%emt 0:09:23]} 17. Qd3 {[%emt 0:07:47]} Bxd4 {[%emt 0:05:57]} 18. Qxd4 {[%emt 0:00:54]} d5 {[%emt 0:02:18]} 19. h5 {[%emt 0:04:54]} dxe4 {[%emt 0:06:21]} 20. h6 {[%emt 0:03:49]} e5 {[%emt 0:01:42]} 21. fxe5 {[%emt 0:00:29]} e3 {[%emt 0:02:26]} 22. Rh5 {[%emt 0:05:00]} Bf3 {[%emt 0:03:50]} 23. e6 {[%emt 0:03:59]} f6 {[%emt 0:02:49]} 24. Qd7 {[%emt 0:00:42]} Qb7 {[%emt 0:04:50]} 25. Rxb5 {[%emt 0:04:15]} Qc7 {[%emt 0:01:30]} 26. Rb7 {[%emt 0:00:45]} Qxb7 {[%emt 0:01:17]} 0-1

[Event "EYTCC Open U12 2018"]
[Site "Bad Blankeburg"]
[Date "2018.07.15"]
[Round "5"]
[White "Sokolovsky, Yahli"]
[Black "Pasztor, Balazs"]
[Result "1-0"]
[ECO "C77"]
[WhiteElo "2106"]
[BlackElo "2141"]
[Annotator "NA"]
[PlyCount "59"]
[EventDate "2018.07.12"]
[EventType "swiss"]
[EventCountry "GER"]
[SourceTitle "playchess.com"]
[Source "ChessBase"]
[SourceQuality "1"]
[TimeControl "40/5400+30:1800+30"]

1. e4 {[%emt 0:00:00]} e5 {[%emt 0:00:00]} 2. Nf3 {[%emt 0:00:00]} Nc6 {[%emt 0:00:00]} 3. Bb5 {[%emt 0:00:00]} a6 {[%emt 0:00:23]} 4. Ba4 {[%emt 0:00:00]} Nf6 {[%emt 0:00:20]} 5. Nc3 {[%emt 0:00:15]} d6 {[%emt 0:08:17]} 6. a3 {[%emt 0:05:09] C77: Spanische Partie (Anderssen-Variante)} (6. O-O b5 7. Bb3 Na5 8. h3 Be7 9. d3 O-O 10. Ne2 Nxb3 11. axb3 h6 12. Ng3 Be6 13. d4 exd4 14. Nxd4 Re8 15. Nxe6 fxe6 16. Qe2 Qd7 17. Rd1 Qc6 18. c3 Rf8 19. Kh1 Rf7 20. b4 Nd7 21. Be3 Ne5 22. Bd4 Raf8 23. f3 Ng6 24. Be3 Bf6 {½-½ (24) Bruzon Batista,L (2659)-Ghaem Maghami,E (2596) Berlin 2015}) 6... g6 {[%emt 0:08:50]} 7. d3 {[%emt 0:07:00]} Bg7 {[%emt 0:02:06]} 8. O-O {[%emt 0:01:41]} O-O {[%emt 0:03:06]} 9. Nd5 $146 {[%emt 0:08:46]} ({Vorgänger:} 9. h3 Nd7 10. Bb3 Nc5 11. Ba2 Ne6 12. Be3 Kh8 13. Qd2 Ncd4 14. Bxd4 exd4 {1-0 (25) Dmochowska,A (2099)-Pankiewicz,T (2240) Poland 2017}) 9... Nxd5 {[%emt 0:08:09]} 10. exd5 {[%emt 0:00:05]} Ne7 {[%emt 0:00:19]} 11. Bb3 {[%emt 0:03:34]} Nf5 {[%emt 0:10:36]} 12. c3 {[%emt 0:03:51]} c5 {[%emt 0:06:25]} 13. Be3 {[%emt 0:07:08]} h6 {[%emt 0:16:20]} 14. a4 {[%emt 0:04:48]} g5 {[%emt 0:02:04]} 15. Nd2 {[%emt 0:06:07]} Nh4 {[%emt 0:05:55]} 16. f3 {[%emt 0:07:33]} f5 {[%emt 0:04:40]} 17. Bf2 {[%emt 0:01:55]} h5 {[%emt 0:04:21]} 18. Bxh4 {[%emt 0:05:29]} gxh4 {[%emt 0:00:10]} 19. f4 {[%emt 0:01:40]} Qe8 {[%emt 0:06:58]} 20. Nf3 {[%emt 0:03:51]} h3 {[%emt 0:07:00]} 21. Ng5 {[%emt 0:01:35]} exf4 {[%emt 0:03:13]} 22. Nxh3 {[%emt 0:01:24]} f3 {[%emt 0:01:01]} 23. Qxf3 {[%emt 0:03:04]} f4 {[%emt 0:00:46]} 24. Nxf4 $18 {[%emt 0:01:05]} Bg4 {[%emt 0:00:24]} 25. Qg3 {[%emt 0:04:33]} b5 {[%emt 0:00:34]} 26. h3 {[%emt 0:02:24]} Bf5 {[%emt 0:00:30]} 27. Ne6 {[%emt 0:01:02]} Bxe6 {[%emt 0:00:24]} 28. dxe6 {[%emt 0:00:12]} Rxf1+ {[%emt 0:00:30]} 29. Rxf1 c4 {[%emt 0:00:15]} 30. Rf7 {[%emt 0:00:34]} 1-0

[Event "EYTCC Open U12 2018"]
[Site "Bad Blankeburg"]
[Date "2018.07.15"]
[Round "5"]
[White "Fule, Simon"]
[Black "Mizrahi, Ido"]
[Result "1-0"]
[ECO "B18"]
[WhiteElo "2061"]
[BlackElo "1914"]
[Annotator "NA"]
[PlyCount "83"]
[EventDate "2018.07.12"]
[EventType "swiss"]
[EventCountry "GER"]
[SourceTitle "playchess.com"]
[Source "ChessBase"]
[SourceQuality "1"]
[TimeControl "40/5400+30:1800+30"]

1. e4 {[%emt 0:00:00]} c6 {[%emt 0:00:00]} 2. d4 {[%emt 0:00:00]} d5 {[%emt 0:00:00]} 3. Nd2 {[%emt 0:00:00]} dxe4 {[%emt 0:00:00]} 4. Nxe4 {[%emt 0:00:00]} Bf5 {[%emt 0:00:22]} 5. Ng3 {[%emt 0:00:01]} Bg6 {[%emt 0:00:04]} 6. h4 {[%emt 0:00:17]} h6 {[%emt 0:00:17]} 7. Nf3 {[%emt 0:00:11]} e6 {[%emt 0:00:46]} 8. Ne5 {[%emt 0:01:13]} Bh7 {[%emt 0:00:11]} 9. Bd3 {[%emt 0:00:10]} Bxd3 {[%emt 0:00:34]} 10. Qxd3 {[%emt 0:00:10]} Nf6 {[%emt 0:01:12]} 11. Bd2 {[%emt 0:02:25]} Nbd7 {[%emt 0:04:32]} 12. f4 {[%emt 0:01:23]} Be7 {[%emt 0:06:55]} 13. O-O-O {[%emt 0:04:05]} O-O {[%emt 0:06:03]} 14. h5 {[%emt 0:08:17]} Qb6 $11 {[%emt 0:02:24]} 15. Kb1 {[%emt 0:05:03]} Rad8 {[%emt 0:04:00]} 16. Ne2 {[%emt 0:06:04]} c5 {[%emt 0:14:18]} 17. c3 {[%emt 0:03:17]} cxd4 {[%emt 0:08:36]} 18. cxd4 {[%emt 0:00:11]} Nxe5 {[%emt 0:05:19]} 19. fxe5 {[%emt 0:00:15]} Nd5 {[%emt 0:00:29]} 20. g4 {[%emt 0:05:48]} Nb4 {[%emt 0:06:27]} 21. Bxb4 {[%emt 0:06:05]} Qxb4 {[%emt 0:01:15]} 22. Qe4 {[%emt 0:06:16]} Rd7 {[%emt 0:07:47]} 23. Rh3 {[%emt 0:07:05]} Rfd8 {[%emt 0:05:51]} 24. Rhd3 {[%emt 0:01:52]} Qa5 {[%emt 0:02:41]} 25. Nc3 {[%emt 0:10:38]} Bb4 {[%emt 0:03:38]} 26. Qe3 {[%emt 0:12:47]} Bxc3 {[%emt 0:08:27]} 27. bxc3 {[%emt 0:00:18]} Rd5 {[%emt 0:02:27]} 28. Ka1 {[%emt 0:06:10]} Qa4 {[%emt 0:04:17]} 29. g5 {[%emt 0:03:52]} Ra5 {[%emt 0:04:08]} 30. R3d2 {[%emt 0:00:37]} Kh7 {[%emt 0:01:07]} 31. gxh6 {[%emt 0:03:12]} gxh6 {[%emt 0:00:01]} 32. Rf1 {[%emt 0:00:13]} Qe8 {[%emt 0:01:19]} 33. Rf6 {[%emt 0:02:10]} Qf8 {[%emt 0:00:15]} 34. Rdf2 {[%emt 0:00:37]} Rd7 {[%emt 0:00:36]} 35. Rg6 {[%emt 0:02:12]} f5 {[%emt 0:00:40]} 36. Rxe6 {[%emt 0:01:56]} Rf7 {[%emt 0:00:29]} 37. Rg2 {[%emt 0:01:09]} f4 {[%emt 0:00:27]} 38. Qe4+ {[%emt 0:00:57]} Kh8 {[%emt 0:00:01]} 39. Rgg6 {[%emt 0:01:07]} Rh7 {[%emt 0:00:17]} 40. Qxf4 {[%emt 0:00:18]} Qd8 {[%emt 0:01:12]} 41. Qf6+ {[%emt 0:30:39]} Qxf6 {[%emt 0:30:16]} 42. Re8+ {[%emt 0:00:04]} 1-0

[Event "EYTCC Open U12 2018"]
[Site "Bad Blankeburg"]
[Date "2018.07.15"]
[Round "5"]
[White "Tancsa, Tamas"]
[Black "Aizenberg, Benny"]
[Result "0-1"]
[ECO "B04"]
[WhiteElo "2023"]
[BlackElo "1941"]
[Annotator "NA"]
[PlyCount "96"]
[EventDate "2018.07.12"]
[EventType "swiss"]
[EventCountry "GER"]
[SourceTitle "playchess.com"]
[Source "ChessBase"]
[SourceQuality "1"]
[TimeControl "40/5400+30:1800+30"]

1. e4 {[%emt 0:00:00]} Nf6 {[%emt 0:00:00]} 2. e5 {[%emt 0:00:00]} Nd5 {[%emt 0:00:00]} 3. d4 {[%emt 0:00:00]} d6 {[%emt 0:00:00]} 4. Nf3 {[%emt 0:00:11]} dxe5 {[%emt 0:00:00]} 5. Nxe5 {[%emt 0:00:07]} e6 {[%emt 0:00:00]} 6. Be2 {[%emt 0:04:03]} Bd6 {[%emt 0:01:21]} 7. Nf3 {[%emt 0:00:43]} O-O {[%emt 0:00:53]} 8. O-O {[%emt 0:00:12]} b6 {[%emt 0:01:14]} 9. c4 {[%emt 0:01:45]} Nf6 {[%emt 0:02:33]} 10. Nc3 {[%emt 0:00:46]} Bb7 {[%emt 0:01:39]} 11. Be3 {[%emt 0:01:29]} Nbd7 {[%emt 0:01:25]} 12. Qc2 {[%emt 0:01:31]} Qe7 {[%emt 0:05:15]} 13. a3 {[%emt 0:01:36]} c5 {[%emt 0:05:20]} 14. Rfd1 {[%emt 0:05:09]} cxd4 {[%emt 0:07:02]} 15. Nxd4 {[%emt 0:00:07]} Rac8 {[%emt 0:02:58]} 16. b4 {[%emt 0:02:48]} Ne5 {[%emt 0:04:35]} 17. Ndb5 {[%emt 0:08:11]} Bb8 {[%emt 0:00:48]} 18. c5 {[%emt 0:09:18]} Nfg4 {[%emt 0:13:04]} 19. Bd4 {[%emt 0:06:17]} Qg5 {[%emt 0:08:20]} 20. Qd2 {[%emt 0:08:26]} Qg6 {[%emt 0:03:44]} 21. g3 {[%emt 0:14:04]} Nf3+ {[%emt 0:14:38]} 22. Bxf3 {[%emt 0:02:53]} Bxf3 {[%emt 0:00:06]} 23. Qd3 {[%emt 0:01:25]} Bxd1 {[%emt 0:00:34]} 24. Qxg6 {[%emt 0:00:04]} hxg6 {[%emt 0:00:26]} 25. Rxd1 {[%emt 0:00:05]} e5 {[%emt 0:02:51]} 26. Be3 {[%emt 0:03:17]} Nxe3 {[%emt 0:00:06]} 27. fxe3 {[%emt 0:00:01]} bxc5 {[%emt 0:00:09]} 28. Nd5 {[%emt 0:00:31]} Rfe8 {[%emt 0:00:37]} 29. Rc1 {[%emt 0:00:07]} a6 {[%emt 0:00:58]} 30. Nbc3 {[%emt 0:02:24]} cxb4 {[%emt 0:00:55]} 31. axb4 {[%emt 0:00:02]} Kf8 {[%emt 0:00:05]} 32. Ra1 {[%emt 0:00:19]} Re6 {[%emt 0:00:29]} 33. Na4 {[%emt 0:00:21]} Ba7 {[%emt 0:00:27]} 34. Kh1 {[%emt 0:00:36]} Rd6 {[%emt 0:01:24]} 35. e4 {[%emt 0:02:18]} Rc4 {[%emt 0:00:18]} 36. b5 {[%emt 0:03:16]} Bd4 {[%emt 0:10:11]} 37. Nab6 {[%emt 0:03:41]} Rxb6 {[%emt 0:03:21]} 38. Nxb6 {[%emt 0:00:53]} Bxb6 {[%emt 0:00:03]} 39. bxa6 {[%emt 0:00:38]} Ba7 {[%emt 0:00:34]} 40. Kg2 {[%emt 0:00:36]} Rc2+ {[%emt 0:01:05]} 41. Kf3 {[%emt 0:30:22]} f5 {[%emt 0:30:05]} 42. exf5 {[%emt 0:00:19]} gxf5 {[%emt 0:00:06]} 43. g4 {[%emt 0:01:52]} Rf2+ {[%emt 0:02:04]} 44. Kg3 {[%emt 0:00:05]} f4+ {[%emt 0:00:05]} 45. Kh3 {[%emt 0:00:05]} Rc2 {[%emt 0:00:26]} 46. Ra5 {[%emt 0:01:36]} g5 {[%emt 0:01:00]} 47. Rxe5 {[%emt 0:00:28]} Bg1 {[%emt 0:00:05]} 48. Rf5+ {[%emt 0:00:38]} Ke7 {[%emt 0:00:04]} 0-1

[Event "EYTCC Open U12 2018"]
[Site "Bad Blankeburg"]
[Date "2018.07.15"]
[Round "5"]
[White "Spizharny, Mikhail"]
[Black "Laux, Dominik"]
[Result "0-1"]
[ECO "B12"]
[WhiteElo "2015"]
[BlackElo "1943"]
[Annotator "NA"]
[PlyCount "68"]
[EventDate "2018.07.12"]
[EventType "swiss"]
[EventCountry "GER"]
[SourceTitle "playchess.com"]
[Source "ChessBase"]
[SourceQuality "1"]
[TimeControl "40/5400+30:1800+30"]

1. e4 {[%emt 0:00:00]} c6 {[%emt 0:00:00]} 2. d4 {[%emt 0:00:00]} d5 {[%emt 0:00:00]} 3. e5 {[%emt 0:00:00]} Bf5 {[%emt 0:00:17]} 4. h4 {[%emt 0:00:04]} h5 {[%emt 0:00:09]} 5. c4 {[%emt 0:00:16]} e6 {[%emt 0:00:27]} 6. Nc3 {[%emt 0:00:13]} Ne7 {[%emt 0:00:45]} 7. Bg5 {[%emt 0:02:33]} dxc4 {[%emt 0:01:06]} 8. Bxc4 {[%emt 0:00:29]} Nd7 {[%emt 0:00:45]} 9. Nge2 {[%emt 0:01:01]} f6 {[%emt 0:00:52]} 10. exf6 {[%emt 0:01:56]} gxf6 {[%emt 0:00:06]} 11. Be3 {[%emt 0:01:32]} Nb6 {[%emt 0:01:54]} 12. Bb3 {[%emt 0:03:23]} Nbd5 {[%emt 0:02:56]} 13. Ng3 {[%emt 0:09:08]} Bg6 {[%emt 0:04:02]} 14. O-O {[%emt 0:05:48]} Kf7 {[%emt 0:05:40]} 15. Qf3 {[%emt 0:03:03]} Nf5 {[%emt 0:05:05]} 16. Bc2 {[%emt 0:14:07]} Nxh4 {[%emt 0:06:07]} 17. Bxg6+ {[%emt 0:00:57]} Nxg6 {[%emt 0:00:33]} 18. Nxh5 {[%emt 0:03:16]} Be7 {[%emt 0:21:55]} 19. Ng3 {[%emt 0:09:23]} f5 {[%emt 0:05:27]} 20. Rfe1 {[%emt 0:05:24]} Bd6 {[%emt 0:03:48]} 21. Nce4 {[%emt 0:06:12]} Nh4 {[%emt 0:08:57]} 22. Nxd6+ {[%emt 0:06:36]} Qxd6 {[%emt 0:00:26]} 23. Qe2 {[%emt 0:01:07]} Rag8 {[%emt 0:01:42]} 24. Bd2 {[%emt 0:11:35]} Qe7 {[%emt 0:04:20]} 25. Qe5 {[%emt 0:03:32]} Ng6 {[%emt 0:08:25]} 26. Qe2 {[%emt 0:01:13]} Ngf4 {[%emt 0:02:56]} 27. Qe5 {[%emt 0:05:57]} Qh4 {[%emt 0:02:42]} 28. Bxf4 {[%emt 0:01:16]} Nxf4 {[%emt 0:00:23]} 29. Qc7+ {[%emt 0:00:40]} Kg6 {[%emt 0:01:02]} 30. Rxe6+ {[%emt 0:02:01]} Nxe6 31. Qxb7 {[%emt 0:01:02]} Nxd4 {[%emt 0:01:11]} 32. Qd7 {[%emt 0:01:44]} Qh2+ {[%emt 0:00:20]} 33. Kf1 {[%emt 0:00:11]} Qh1+ {[%emt 0:00:07]} 34. Nxh1 {[%emt 0:00:12]} Rxh1# 0-1